[Event "Late-Titled-Tuesday-Blitz-May-14-2024"]
[Site "Chess.com"]
[Date "2024.05.14"]
[Round "6"]
[White "Iuckyducky"]
[Black "Hakiki_satranc"]
[Result "1/2-1/2"]
[WhiteElo "2298"]
[BlackElo "2418"]
[TimeControl "180+1"]
[EndTime "15:07:38 PDT"]
[Termination "Game drawn by repetition"]

1. e4 {[%clk 0:03:00.9]} 1... c5 {[%clk 0:02:59.4]} 2. Nf3 {[%clk 0:03:01]} 2...
Nc6 {[%clk 0:03:00]} 3. Bb5 {[%clk 0:03:00.9]} 3... d6 {[%clk 0:02:59.1]} 4.
Bxc6+ {[%clk 0:02:32.1]} 4... bxc6 {[%clk 0:02:58.1]} 5. O-O {[%clk 0:02:33]}
5... Nf6 {[%clk 0:02:49.2]} 6. Re1 {[%clk 0:02:31.7]} 6... e5 {[%clk 0:02:49.3]}
7. c3 {[%clk 0:02:29.6]} 7... Be7 {[%clk 0:02:42.6]} 8. d3 {[%clk 0:02:21.1]}
8... O-O {[%clk 0:02:41.2]} 9. Na3 {[%clk 0:02:20.4]} 9... Ne8 {[%clk
0:02:28.1]} 10. Nc4 {[%clk 0:02:13.6]} 10... f5 {[%clk 0:02:25.2]} 11. b4 {[%clk
0:01:51.1]} 11... cxb4 {[%clk 0:02:23]} 12. cxb4 {[%clk 0:01:47.6]} 12... Be6
{[%clk 0:02:16.8]} 13. Bb2 {[%clk 0:01:33.5]} 13... fxe4 {[%clk 0:02:12.4]} 14.
Rxe4 {[%clk 0:01:25.6]} 14... Bd5 {[%clk 0:02:09.8]} 15. Re3 {[%clk 0:01:18.9]}
15... Bg5 {[%clk 0:01:55.3]} 16. Nxg5 {[%clk 0:01:09.7]} 16... Qxg5 {[%clk
0:01:56.2]} 17. Rg3 {[%clk 0:01:07.5]} 17... Qf4 {[%clk 0:01:56.6]} 18. Qc2
{[%clk 0:01:04.8]} 18... Nf6 {[%clk 0:01:45.8]} 19. Nxd6 {[%clk 0:00:57.1]}
19... Nh5 {[%clk 0:01:45.5]} 20. Re3 {[%clk 0:00:43.2]} 20... Qg4 {[%clk
0:01:39.9]} 21. f3 {[%clk 0:00:43.1]} 21... Rxf3 {[%clk 0:01:35.1]} 22. Rxf3
{[%clk 0:00:34.7]} 22... Bxf3 {[%clk 0:01:36]} 23. Qc4+ {[%clk 0:00:33.8]} 23...
Qxc4 {[%clk 0:01:36]} 24. dxc4 {[%clk 0:00:33.1]} 24... Bg4 {[%clk 0:01:31.4]}
25. Bxe5 {[%clk 0:00:32.3]} 25... Be6 {[%clk 0:01:06.3]} 26. h3 {[%clk 0:00:27]}
26... g5 {[%clk 0:00:54.4]} 27. Re1 {[%clk 0:00:20.3]} 27... Bd7 {[%clk
0:00:40]} 28. g4 {[%clk 0:00:17.8]} 28... Nf4 {[%clk 0:00:37.1]} 29. Bxf4 {[%clk
0:00:18.1]} 29... gxf4 {[%clk 0:00:38]} 30. Re7 {[%clk 0:00:18.1]} 30... Rb8
{[%clk 0:00:18.6]} 31. Rxd7 {[%clk 0:00:15.7]} 31... Rxb4 {[%clk 0:00:17.9]} 32.
Rxa7 {[%clk 0:00:15.4]} 32... Rb2 {[%clk 0:00:16.5]} 33. a4 {[%clk 0:00:05.8]}
33... f3 {[%clk 0:00:13.4]} 34. Ne4 {[%clk 0:00:06]} 34... Re2 {[%clk
0:00:11.4]} 35. Nf2 {[%clk 0:00:05.6]} 35... Rc2 {[%clk 0:00:09.8]} 36. a5
{[%clk 0:00:05.2]} 36... Rxc4 {[%clk 0:00:10.2]} 37. a6 {[%clk 0:00:05.8]} 37...
Ra4 {[%clk 0:00:10.7]} 38. Ra8+ {[%clk 0:00:06.3]} 38... Kf7 {[%clk 0:00:10.4]}
39. a7 {[%clk 0:00:06.9]} 39... Kg7 {[%clk 0:00:09.1]} 40. Kh2 {[%clk
0:00:06.1]} 40... Ra3 {[%clk 0:00:08.6]} 41. Kg3 {[%clk 0:00:06.7]} 41... c5
{[%clk 0:00:09.3]} 42. Ne4 {[%clk 0:00:04.3]} 42... c4 {[%clk 0:00:08]} 43. Nc5
{[%clk 0:00:02.2]} 43... h6 {[%clk 0:00:07.2]} 44. Ne6+ {[%clk 0:00:02.1]} 44...
Kh7 {[%clk 0:00:07.7]} 45. Nd4 {[%clk 0:00:02.8]} 45... c3 {[%clk 0:00:07.2]}
46. Nxf3 {[%clk 0:00:02.6]} 46... c2 {[%clk 0:00:07.3]} 47. Rc8 {[%clk
0:00:02.8]} 47... Rxa7 {[%clk 0:00:07.3]} 48. Rxc2 {[%clk 0:00:03.2]} 48... Ra3
{[%clk 0:00:08]} 49. Rc7+ {[%clk 0:00:03.2]} 49... Kg6 {[%clk 0:00:08.4]} 50.
Rc6+ {[%clk 0:00:04.1]} 50... Kg7 {[%clk 0:00:08.6]} 51. Kf4 {[%clk 0:00:04.8]}
51... Ra4+ {[%clk 0:00:08.1]} 52. Kg3 {[%clk 0:00:05]} 52... Ra3 {[%clk
0:00:08.5]} 53. Kh4 {[%clk 0:00:05.6]} 53... Rxf3 {[%clk 0:00:07.8]} 54. Rc7+
{[%clk 0:00:05.8]} 54... Kg6 {[%clk 0:00:07.9]} 55. Rc6+ {[%clk 0:00:06.2]}
55... Kg7 {[%clk 0:00:08.5]} 56. Rc5 {[%clk 0:00:05.6]} 56... Rf2 {[%clk
0:00:08.2]} 57. Kh5 {[%clk 0:00:05.1]} 57... Rf7 {[%clk 0:00:07.2]} 58. h4
{[%clk 0:00:05.1]} 58... Rd7 {[%clk 0:00:07]} 59. Rc6 {[%clk 0:00:05.2]} 59...
Rd5+ {[%clk 0:00:06.9]} 60. g5 {[%clk 0:00:05.9]} 60... hxg5 {[%clk 0:00:07.7]}
61. hxg5 {[%clk 0:00:06.8]} 61... Rd7 {[%clk 0:00:07.5]} 62. Rb6 {[%clk
0:00:06.5]} 62... Kg8 {[%clk 0:00:07.5]} 63. Kg6 {[%clk 0:00:05.6]} 63... Rd8
{[%clk 0:00:08.1]} 64. Ra6 {[%clk 0:00:04.1]} 64... Rb8 {[%clk 0:00:08.2]} 65.
Kh6 {[%clk 0:00:03.5]} 65... Rc8 {[%clk 0:00:08]} 66. g6 {[%clk 0:00:02.3]}
66... Rb8 {[%clk 0:00:08.5]} 67. Ra7 {[%clk 0:00:02.3]} 67... Rc8 {[%clk
0:00:08.8]} 68. Rg7+ {[%clk 0:00:02.6]} 68... Kh8 {[%clk 0:00:09.3]} 69. Rh7+
{[%clk 0:00:02.8]} 69... Kg8 {[%clk 0:00:10]} 70. Rg7+ {[%clk 0:00:03.5]} 70...
Kh8 {[%clk 0:00:10.6]} 71. Ra7 {[%clk 0:00:03.1]} 71... Kg8 {[%clk 0:00:10.9]}
72. Rg7+ {[%clk 0:00:03]} 1/2-1/2

[Event "Late-Titled-Tuesday-Blitz-May-14-2024"]
[Site "Chess.com"]
[Date "2024.05.14"]
[Round "6"]
[White "Meri-Arabidze"]
[Black "BilodeauA"]
[Result "0-1"]
[WhiteElo "2684"]
[BlackElo "2899"]
[TimeControl "180+1"]
[EndTime "15:07:48 PDT"]
[Termination "BilodeauA won on time"]

1. Nf3 {[%clk 0:03:00.9]} 1... d5 {[%clk 0:02:53]} 2. c4 {[%clk 0:03:00.7]} 2...
dxc4 {[%clk 0:02:52.8]} 3. Qa4+ {[%clk 0:02:58.1]} 3... Nd7 {[%clk 0:02:50.7]}
4. Qxc4 {[%clk 0:02:58.2]} 4... e6 {[%clk 0:02:50.7]} 5. g3 {[%clk 0:02:58.1]}
5... a6 {[%clk 0:02:50.8]} 6. Bg2 {[%clk 0:02:54.3]} 6... b5 {[%clk 0:02:50.9]}
7. Qc2 {[%clk 0:02:49.1]} 7... Bb7 {[%clk 0:02:50.2]} 8. O-O {[%clk 0:02:49.7]}
8... Ngf6 {[%clk 0:02:49.8]} 9. b3 {[%clk 0:02:49.3]} 9... Be7 {[%clk
0:02:48.6]} 10. Bb2 {[%clk 0:02:49.6]} 10... O-O {[%clk 0:02:48.8]} 11. d3
{[%clk 0:02:49]} 11... c5 {[%clk 0:02:48.9]} 12. e4 {[%clk 0:02:49.1]} 12... Rc8
{[%clk 0:02:48.6]} 13. Nc3 {[%clk 0:02:48.5]} 13... Qb6 {[%clk 0:02:44.7]} 14.
Rad1 {[%clk 0:02:47.8]} 14... Rfd8 {[%clk 0:02:24.2]} 15. Rfe1 {[%clk
0:02:45.7]} 15... h6 {[%clk 0:02:00]} 16. h4 {[%clk 0:02:44]} 16... Nb8 {[%clk
0:01:44.7]} 17. Qe2 {[%clk 0:02:40.9]} 17... Nc6 {[%clk 0:01:44.7]} 18. e5
{[%clk 0:02:40.5]} 18... Nd7 {[%clk 0:01:30.4]} 19. Ne4 {[%clk 0:02:39.7]} 19...
Qc7 {[%clk 0:01:22.6]} 20. Ned2 {[%clk 0:02:16.6]} 20... Nb4 {[%clk 0:01:18.8]}
21. a3 {[%clk 0:02:06.4]} 21... Nc6 {[%clk 0:01:07.1]} 22. h5 {[%clk 0:02:03.9]}
22... Kh8 {[%clk 0:01:02.3]} 23. g4 {[%clk 0:02:02.1]} 23... Nd4 {[%clk
0:00:56.4]} 24. Nxd4 {[%clk 0:01:55.7]} 24... cxd4 {[%clk 0:00:56.8]} 25. Bxd4
{[%clk 0:01:45.3]} 25... Bxg2 {[%clk 0:00:56.2]} 26. Kxg2 {[%clk 0:01:46.2]}
26... Bxa3 {[%clk 0:00:48.8]} 27. g5 {[%clk 0:01:34.8]} 27... Be7 {[%clk
0:00:48.9]} 28. gxh6 {[%clk 0:01:33.1]} 28... gxh6 {[%clk 0:00:49.2]} 29. Ne4
{[%clk 0:01:29.7]} 29... Rg8+ {[%clk 0:00:49.3]} 30. Kf1 {[%clk 0:01:20.4]}
30... Rg7 {[%clk 0:00:34.6]} 31. Qe3 {[%clk 0:01:17.6]} 31... Rcg8 {[%clk
0:00:33.9]} 32. Qxh6+ {[%clk 0:01:14.2]} 32... Rh7 {[%clk 0:00:34.5]} 33. Qf4
{[%clk 0:01:12.1]} 33... f5 {[%clk 0:00:32.7]} 34. Nd6 {[%clk 0:01:03.8]} 34...
Rg4 {[%clk 0:00:32.1]} 35. Qe3 {[%clk 0:00:53.7]} 35... Bg5 {[%clk 0:00:32]} 36.
Rc1 {[%clk 0:00:24.5]} 36... Bxe3 {[%clk 0:00:32.2]} 37. Rxc7 {[%clk 0:00:24.4]}
37... Bxd4 {[%clk 0:00:32.9]} 38. h6 {[%clk 0:00:18.6]} 38... Nxe5 {[%clk
0:00:29.1]} 39. Rc8+ {[%clk 0:00:10.6]} 39... Rg8 {[%clk 0:00:29.2]} 40. Rxg8+
{[%clk 0:00:05.8]} 40... Kxg8 {[%clk 0:00:29.8]} 41. f4 {[%clk 0:00:06.1]} 41...
Ng4 {[%clk 0:00:20.3]} 42. Rxe6 {[%clk 0:00:06]} 42... Rxh6 {[%clk 0:00:20.8]}
43. Re8+ {[%clk 0:00:05.3]} 43... Kh7 {[%clk 0:00:20.6]} 44. Nxf5 {[%clk
0:00:05.9]} 44... Rh1+ {[%clk 0:00:19]} 45. Kg2 {[%clk 0:00:06.2]} 45... Rg1+
{[%clk 0:00:19.4]} 46. Kf3 {[%clk 0:00:05.8]} 46... Bf6 {[%clk 0:00:19.6]} 47.
Rf8 {[%clk 0:00:05]} 47... Kg6 {[%clk 0:00:18.6]} 48. Nd6 {[%clk 0:00:03.7]}
48... Nh2+ {[%clk 0:00:19]} 49. Ke4 {[%clk 0:00:03.6]} 49... Re1+ {[%clk
0:00:17.7]} 50. Kd5 {[%clk 0:00:04]} 50... Nf3 {[%clk 0:00:17.2]} 51. f5+ {[%clk
0:00:04.5]} 51... Kg5 {[%clk 0:00:08.4]} 52. Ne4+ {[%clk 0:00:04.7]} 52... Kxf5
{[%clk 0:00:02.5]} 53. Rxf6+ {[%clk 0:00:04.4]} 53... Kg4 {[%clk 0:00:03.4]} 54.
Rxa6 {[%clk 0:00:04.5]} 54... Kf4 {[%clk 0:00:03.5]} 55. Rf6+ {[%clk 0:00:04.4]}
55... Ke3 {[%clk 0:00:04.2]} 56. Rb6 {[%clk 0:00:02.9]} 56... Rh1 {[%clk
0:00:04.7]} 57. Rxb5 {[%clk 0:00:02.7]} 57... Rh5+ {[%clk 0:00:04.9]} 58. Kc4
{[%clk 0:00:02.8]} 58... Ne5+ {[%clk 0:00:03.9]} 59. Kc3 {[%clk 0:00:03.1]}
59... Rf5 {[%clk 0:00:02.8]} 60. Rc5 {[%clk 0:00:02.6]} 60... Kf4 {[%clk
0:00:01.8]} 61. b4 {[%clk 0:00:03.1]} 61... Rf8 {[%clk 0:00:02.5]} 62. b5 {[%clk
0:00:02.6]} 62... Rd8 {[%clk 0:00:03.3]} 63. Kb4 {[%clk 0:00:02.4]} 63... Nxd3+
{[%clk 0:00:03.7]} 64. Kc4 {[%clk 0:00:02.8]} 64... Kxe4 {[%clk 0:00:03.9]} 65.
Rc6 {[%clk 0:00:02.1]} 65... Rd4+ {[%clk 0:00:04.1]} 66. Kb3 {[%clk 0:00:02.1]}
66... Kd5 {[%clk 0:00:03.5]} 67. Rc8 {[%clk 0:00:02]} 67... Nc5+ {[%clk
0:00:04.2]} 68. Kc3 {[%clk 0:00:02.1]} 68... Rc4+ {[%clk 0:00:04.9]} 69. Kd2
{[%clk 0:00:02.4]} 69... Ne4+ {[%clk 0:00:05.5]} 70. Ke3 {[%clk 0:00:02.6]}
70... Rxc8 {[%clk 0:00:06.4]} 0-1

[Event "Late-Titled-Tuesday-Blitz-May-14-2024"]
[Site "Chess.com"]
[Date "2024.05.14"]
[Round "6"]
[White "yaguigor"]
[Black "BestestBP"]
[Result "1-0"]
[WhiteElo "2560"]
[BlackElo "2195"]
[TimeControl "180+1"]
[EndTime "15:07:54 PDT"]
[Termination "yaguigor won by resignation"]

1. d4 {[%clk 0:02:59.7]} 1... Nf6 {[%clk 0:02:59.9]} 2. c4 {[%clk 0:02:59]} 2...
d6 {[%clk 0:02:58]} 3. Nf3 {[%clk 0:02:55.2]} 3... g6 {[%clk 0:02:58.4]} 4. Nc3
{[%clk 0:02:54.1]} 4... Bg7 {[%clk 0:02:58.6]} 5. e4 {[%clk 0:02:53.8]} 5... O-O
{[%clk 0:02:59.2]} 6. Be2 {[%clk 0:02:53.8]} 6... Nbd7 {[%clk 0:02:59.8]} 7. e5
{[%clk 0:02:51.2]} 7... dxe5 {[%clk 0:02:52.6]} 8. dxe5 {[%clk 0:02:50.4]} 8...
Ng4 {[%clk 0:02:53.2]} 9. e6 {[%clk 0:02:50.7]} 9... Nde5 {[%clk 0:02:44.4]} 10.
Qxd8 {[%clk 0:02:48.8]} 10... Rxd8 {[%clk 0:02:43.6]} 11. exf7+ {[%clk
0:02:35.7]} 11... Nxf7 {[%clk 0:02:38.6]} 12. h3 {[%clk 0:02:33.6]} 12... Nge5
{[%clk 0:02:34.8]} 13. Bd2 {[%clk 0:02:27.8]} 13... c6 {[%clk 0:02:31.7]} 14.
O-O-O {[%clk 0:02:25.7]} 14... Bf5 {[%clk 0:02:28.8]} 15. Nxe5 {[%clk 0:02:23]}
15... Nxe5 {[%clk 0:02:28.2]} 16. Bg5 {[%clk 0:02:19.4]} 16... Kf7 {[%clk
0:02:22]} 17. Rxd8 {[%clk 0:02:05.3]} 17... Rxd8 {[%clk 0:02:21.1]} 18. Rd1
{[%clk 0:02:05.3]} 18... Rxd1+ {[%clk 0:02:02.7]} 19. Nxd1 {[%clk 0:02:02.6]}
19... Bd3 {[%clk 0:01:59.1]} 20. Bxd3 {[%clk 0:01:59.4]} 20... Nxd3+ {[%clk
0:01:59.5]} 21. Kb1 {[%clk 0:01:55.2]} 21... Ne1 {[%clk 0:01:41]} 22. g4 {[%clk
0:01:53.6]} 22... Nf3 {[%clk 0:01:40.7]} 23. Be3 {[%clk 0:01:52.8]} 23... b6
{[%clk 0:01:28.3]} 24. Kc2 {[%clk 0:01:44.9]} 24... h5 {[%clk 0:01:25.5]} 25.
gxh5 {[%clk 0:01:30.8]} 25... gxh5 {[%clk 0:01:26.4]} 26. Kd3 {[%clk 0:01:26.6]}
26... Ne5+ {[%clk 0:01:24.2]} 27. Ke4 {[%clk 0:01:25.5]} 27... Nxc4 {[%clk
0:01:24.1]} 28. Bc1 {[%clk 0:01:22.7]} 28... Nd6+ {[%clk 0:01:16.7]} 29. Kf3
{[%clk 0:01:19.8]} 29... e5 {[%clk 0:01:14.7]} 30. Nc3 {[%clk 0:01:17.7]} 30...
Ke6 {[%clk 0:01:12.5]} 31. Ne4 {[%clk 0:01:17.7]} 31... Nb5 {[%clk 0:00:55.5]}
32. b3 {[%clk 0:01:14]} 32... Nd4+ {[%clk 0:00:54.7]} 33. Kg2 {[%clk 0:01:06.6]}
33... c5 {[%clk 0:00:47.2]} 34. Ng3 {[%clk 0:00:59.6]} 34... h4 {[%clk
0:00:38.3]} 35. Ne4 {[%clk 0:00:59.9]} 35... Bf8 {[%clk 0:00:27.6]} 36. f3
{[%clk 0:00:53.7]} 36... Be7 {[%clk 0:00:25.9]} 37. Kf2 {[%clk 0:00:53.2]} 37...
Kf5 {[%clk 0:00:24.3]} 38. Bd2 {[%clk 0:00:49.2]} 38... Bf8 {[%clk 0:00:22.4]}
39. Bg5 {[%clk 0:00:45.1]} 39... b5 {[%clk 0:00:20.7]} 40. Bxh4 {[%clk
0:00:44.8]} 40... c4 {[%clk 0:00:20.8]} 41. bxc4 {[%clk 0:00:44.3]} 41... bxc4
{[%clk 0:00:21.2]} 42. Bg5 {[%clk 0:00:40.2]} 42... c3 {[%clk 0:00:20.5]} 43.
Bc1 {[%clk 0:00:38.4]} 43... c2 {[%clk 0:00:20.6]} 44. Ng3+ {[%clk 0:00:32.1]}
44... Ke6 {[%clk 0:00:19.4]} 45. Ne2 {[%clk 0:00:32]} 45... Kd5 {[%clk
0:00:17.1]} 46. h4 {[%clk 0:00:28.3]} 46... Kc4 {[%clk 0:00:12.9]} 47. h5 {[%clk
0:00:26.6]} 47... Nf5 {[%clk 0:00:12.6]} 48. Ng3 {[%clk 0:00:20.6]} 48... Nh6
{[%clk 0:00:06.8]} 49. Ke2 {[%clk 0:00:19.2]} 49... Kb5 {[%clk 0:00:02]} 50. Kd3
{[%clk 0:00:17.8]} 50... a5 {[%clk 0:00:01.6]} 51. Kxc2 {[%clk 0:00:17.6]} 51...
Kc4 {[%clk 0:00:02.4]} 52. Bxh6 {[%clk 0:00:14.6]} 52... Bxh6 {[%clk 0:00:02.4]}
53. Nf5 {[%clk 0:00:15.3]} 53... Bg5 {[%clk 0:00:02.5]} 54. h6 {[%clk
0:00:15.5]} 54... Bf6 {[%clk 0:00:01.9]} 55. h7 {[%clk 0:00:15.4]} 55... Kd5
{[%clk 0:00:02.4]} 56. Kd3 {[%clk 0:00:14.7]} 56... Ke6 {[%clk 0:00:02.9]} 57.
Ke4 {[%clk 0:00:13.9]} 57... a4 {[%clk 0:00:01.8]} 58. Ne3 {[%clk 0:00:09.8]}
58... Bh8 {[%clk 0:00:02.3]} 59. Nc4 {[%clk 0:00:08.2]} 59... Kf7 {[%clk
0:00:02.8]} 60. Nxe5+ {[%clk 0:00:07]} 60... Kg7 {[%clk 0:00:03.5]} 61. Nc4
{[%clk 0:00:05.5]} 61... Kxh7 {[%clk 0:00:03.8]} 62. Nb6 {[%clk 0:00:06]} 62...
a3 {[%clk 0:00:04.2]} 63. Nc4 {[%clk 0:00:06.4]} 63... Kg6 {[%clk 0:00:04.1]}
64. Nxa3 {[%clk 0:00:05.8]} 64... Bb2 {[%clk 0:00:02.3]} 65. Nc4 {[%clk
0:00:06.2]} 65... Bf6 {[%clk 0:00:02.2]} 66. a4 {[%clk 0:00:07.1]} 66... Bd8
{[%clk 0:00:02.7]} 67. Kd5 {[%clk 0:00:06.6]} 67... Kf5 {[%clk 0:00:02.3]} 68.
Kc6 {[%clk 0:00:05.5]} 68... Kf4 {[%clk 0:00:02.1]} 69. Nb6 {[%clk 0:00:06.1]}
69... Kxf3 {[%clk 0:00:01.6]} 70. a5 {[%clk 0:00:06.7]} 70... Ke4 {[%clk
0:00:01.5]} 71. a6 {[%clk 0:00:07.3]} 71... Bxb6 {[%clk 0:00:01.5]} 72. Kxb6
{[%clk 0:00:07.2]} 72... Kd5 {[%clk 0:00:02.4]} 73. a7 {[%clk 0:00:07.9]} 1-0

[Event "Late-Titled-Tuesday-Blitz-May-14-2024"]
[Site "Chess.com"]
[Date "2024.05.14"]
[Round "6"]
[White "Filipets"]
[Black "HipsterChess22"]
[Result "1-0"]
[WhiteElo "2578"]
[BlackElo "2181"]
[TimeControl "180+1"]
[EndTime "15:07:59 PDT"]
[Termination "Filipets won by resignation"]

1. c4 {[%clk 0:02:56.1]} 1... c6 {[%clk 0:02:59.7]} 2. d4 {[%clk 0:02:55.5]}
2... d5 {[%clk 0:02:58.2]} 3. cxd5 {[%clk 0:02:56.4]} 3... cxd5 {[%clk
0:02:58.6]} 4. Nc3 {[%clk 0:02:57]} 4... e5 {[%clk 0:02:53.2]} 5. dxe5 {[%clk
0:02:54.2]} 5... d4 {[%clk 0:02:53]} 6. Ne4 {[%clk 0:02:54.5]} 6... Qa5+ {[%clk
0:02:46.5]} 7. Bd2 {[%clk 0:02:52.4]} 7... Qxe5 {[%clk 0:02:44.8]} 8. Ng3 {[%clk
0:02:53]} 8... Nc6 {[%clk 0:02:41.5]} 9. Nf3 {[%clk 0:02:51.5]} 9... Qd5 {[%clk
0:02:36.3]} 10. a3 {[%clk 0:02:28.7]} 10... Nf6 {[%clk 0:02:35.2]} 11. Rc1
{[%clk 0:02:17.8]} 11... Be6 {[%clk 0:02:34.2]} 12. e3 {[%clk 0:02:14.3]} 12...
dxe3 {[%clk 0:02:32]} 13. Bxe3 {[%clk 0:02:15.2]} 13... Qxd1+ {[%clk 0:02:26.6]}
14. Rxd1 {[%clk 0:02:16.1]} 14... Be7 {[%clk 0:02:21]} 15. Bb5 {[%clk
0:02:13.4]} 15... O-O {[%clk 0:02:16]} 16. O-O {[%clk 0:02:12.3]} 16... Rfd8
{[%clk 0:02:11.5]} 17. Bxc6 {[%clk 0:02:10]} 17... bxc6 {[%clk 0:02:12.4]} 18.
Nd4 {[%clk 0:02:09.6]} 18... Bd5 {[%clk 0:02:06.8]} 19. Rc1 {[%clk 0:02:06.6]}
19... Rdb8 {[%clk 0:01:55.8]} 20. b4 {[%clk 0:01:58.2]} 20... a5 {[%clk
0:01:53.4]} 21. Nxc6 {[%clk 0:01:55.7]} 21... Bxc6 {[%clk 0:01:52.4]} 22. Rxc6
{[%clk 0:01:56]} 22... axb4 {[%clk 0:01:52.1]} 23. axb4 {[%clk 0:01:56.2]} 23...
Bxb4 {[%clk 0:01:45.4]} 24. Nf5 {[%clk 0:01:51.2]} 24... Ra5 {[%clk 0:01:18.5]}
25. Nd4 {[%clk 0:01:45.8]} 25... Bc5 {[%clk 0:01:10.7]} 26. Nb3 {[%clk
0:01:13.8]} 26... Rxb3 {[%clk 0:01:09.2]} 27. Bxc5 {[%clk 0:01:13.7]} 27... h6
{[%clk 0:00:58.1]} 28. Be3 {[%clk 0:01:09]} 28... Nd5 {[%clk 0:00:50.6]} 29. Bd4
{[%clk 0:01:07.6]} 29... Rd3 {[%clk 0:00:46.6]} 30. Rc8+ {[%clk 0:01:00.1]}
30... Kh7 {[%clk 0:00:46.4]} 31. Be5 {[%clk 0:01:00.7]} 31... Ne7 {[%clk
0:00:30]} 32. Rc3 {[%clk 0:00:46.9]} 32... Rxc3 {[%clk 0:00:24.2]} 33. Bxc3
{[%clk 0:00:47.8]} 33... Ra7 {[%clk 0:00:20.8]} 34. h3 {[%clk 0:00:46.9]} 34...
Nd5 {[%clk 0:00:20.2]} 35. Be5 {[%clk 0:00:46.2]} 35... Nf6 {[%clk 0:00:19.4]}
36. Bxf6 {[%clk 0:00:46.2]} 36... gxf6 {[%clk 0:00:20.3]} 37. g3 {[%clk
0:00:47]} 37... Kg6 {[%clk 0:00:20.3]} 38. Kg2 {[%clk 0:00:47.9]} 38... h5
{[%clk 0:00:20.5]} 39. Rc1 {[%clk 0:00:47.7]} 39... Ra6 {[%clk 0:00:20.2]} 40.
Rc4 {[%clk 0:00:48.1]} 40... f5 {[%clk 0:00:20.3]} 41. Rb4 {[%clk 0:00:47.4]}
41... Rc6 {[%clk 0:00:20.3]} 42. Rb3 {[%clk 0:00:47.9]} 42... Ra6 {[%clk
0:00:20.4]} 43. Kf3 {[%clk 0:00:48.2]} 43... Rc6 {[%clk 0:00:19.5]} 44. Rd3
{[%clk 0:00:46.7]} 44... Rf6 {[%clk 0:00:19.8]} 45. Kf4 {[%clk 0:00:45.2]} 45...
Re6 {[%clk 0:00:19.9]} 46. Rd4 {[%clk 0:00:45.4]} 46... Rf6 {[%clk 0:00:20]} 47.
Ra4 {[%clk 0:00:45.2]} 47... Re6 {[%clk 0:00:20.3]} 48. f3 {[%clk 0:00:44.4]}
48... Rf6 {[%clk 0:00:20.5]} 49. Ra5 {[%clk 0:00:43.1]} 49... Rb6 {[%clk
0:00:18.1]} 50. Ra4 {[%clk 0:00:38.6]} 50... Rc6 {[%clk 0:00:17.7]} 51. Ke5
{[%clk 0:00:36.1]} 51... Re6+ {[%clk 0:00:16.8]} 52. Kd5 {[%clk 0:00:36.5]}
52... Rb6 {[%clk 0:00:16.7]} 53. Rc4 {[%clk 0:00:35.8]} 53... Re6 {[%clk
0:00:16.2]} 54. Rc6 {[%clk 0:00:34.5]} 54... Rxc6 {[%clk 0:00:15.4]} 55. Kxc6
{[%clk 0:00:35.4]} 55... f4 {[%clk 0:00:14.7]} 56. g4 {[%clk 0:00:23.4]} 56...
hxg4 {[%clk 0:00:13.8]} 57. hxg4 {[%clk 0:00:24.3]} 57... f5 {[%clk 0:00:09.8]}
58. gxf5+ {[%clk 0:00:19.2]} 58... Kxf5 {[%clk 0:00:10.7]} 59. Kd5 {[%clk
0:00:19.6]} 59... Kf6 {[%clk 0:00:06.8]} 60. Kd6 {[%clk 0:00:18.1]} 60... Kf5
{[%clk 0:00:06.7]} 61. Ke7 {[%clk 0:00:17.9]} 61... Kg5 {[%clk 0:00:05.1]} 62.
Ke6 {[%clk 0:00:17.9]} 62... Kg6 {[%clk 0:00:01.4]} 63. Ke5 {[%clk 0:00:18.2]}
63... Kf7 {[%clk 0:00:01.7]} 64. Kf5 {[%clk 0:00:16.5]} 64... Ke7 {[%clk
0:00:01.5]} 65. Kg6 {[%clk 0:00:16.8]} 65... Ke6 {[%clk 0:00:01.1]} 66. Kh5
{[%clk 0:00:17.1]} 66... Kf7 {[%clk 0:00:02]} 67. Kg5 {[%clk 0:00:17.3]} 67...
Kg7 {[%clk 0:00:02]} 68. Kg4 {[%clk 0:00:17.2]} 68... Kf6 {[%clk 0:00:02.9]} 69.
Kxf4 {[%clk 0:00:17.7]} 69... Ke6 {[%clk 0:00:03.2]} 70. Kg5 {[%clk 0:00:17.9]}
70... Kf7 {[%clk 0:00:03.6]} 71. Kf5 {[%clk 0:00:18.1]} 71... Kg7 {[%clk
0:00:03.5]} 72. Ke6 {[%clk 0:00:17.6]} 72... Kf8 {[%clk 0:00:03.8]} 73. Kf6
{[%clk 0:00:17.8]} 73... Ke8 {[%clk 0:00:03]} 74. f4 {[%clk 0:00:17.7]} 74...
Kf8 {[%clk 0:00:03]} 75. f5 {[%clk 0:00:18.3]} 75... Kg8 {[%clk 0:00:02.6]} 76.
Ke7 {[%clk 0:00:18.9]} 76... Kg7 {[%clk 0:00:02.5]} 77. f6+ {[%clk 0:00:19.8]}
77... Kg8 {[%clk 0:00:02.5]} 78. f7+ {[%clk 0:00:20.7]} 78... Kg7 {[%clk
0:00:02.4]} 79. f8=Q+ {[%clk 0:00:21.2]} 79... Kg6 {[%clk 0:00:02.6]} 80. Qf4
{[%clk 0:00:21.1]} 1-0